[Event "5th Schach960-Festival 2024"]
[Site "Berlin"]
[Date "2024.02.11"]
[Round "9.9"]
[White "Glek, Igor"]
[Black "Zenker, Ulrich"]
[Result "1/2-1/2"]
[ECO "A81"]
[WhiteElo "2423"]
[BlackElo "2115"]
[Annotator "TA"]
[PlyCount "29"]
[EventDate "2024.02.08"]
[EventType "swiss"]
[EventCountry "GER"]
[SourceTitle "playchess.com"]
[Source "ChessBase"]
[SourceQuality "1"]
[TimeControl "1500+30"]

{[%evp 9,29,27,32,31,37,21,145,-18,105,-85,101,-88,288,0,363,141,473,-1403,303,-1154,335,-1337]} 1. d4 {[%emt 0:00:51]} f5 {[%emt 0:00:12]} 2. Nf3 {[%emt 0:00:16]} Nf6 {[%emt 0:00:54]} 3. g3 {[%emt 0:00:00]} b6 {[%emt 0:00:36]} 4. e3 {[%emt 0:00:51]} g5 {[%emt 0:01:39][%cal Bg7g5,Bg5g4][%mdl 32]} 5. Qe2 {[%emt 0:00:19]} g4 {[%emt 0:01:59]} 6. Nh4 {[%emt 0:00:47]} e6 {[%emt 0:00:01]} 7. c4 {[%emt 0:05:01]} c5 {[%emt 0:05:21]} (7... Bb7 $11 8. Bg2 Bxg2 9. Nxg2 Nc6) 8. f4 $2 {[%emt 0:10:40]} (8. d5 $1 $16) 8... Qe7 {[%emt 0:01:42] [#]} (8... d5 $11) 9. b4 $2 {[%emt 0:00:18]} Rg8 $2 {[%emt 0:00:12]} (9... cxd4 $17 10. a3 Bg7 (10... Bb7 11. Bg2 $15)) 10. Qg2 $2 {[%emt 0:03:40] [#]} (10. Bg2 $16 d5 11. dxc5) 10... Nd5 $2 {[%emt 0:02:30][%mdl 8192]} 11. Qe2 $2 {[%emt 0:00:00]} (11. cxd5 $18 Bb7 12. Nc3 cxd4 13. exd4) 11... h5 $2 {[%emt 0:09:26][%mdl 8192]} 12. b5 $2 {[%emt 0:08:12]} (12. cxd5 $18 cxd4 13. b5 (13. exd4 Qxb4+ 14. Nd2 Qxd4 $18)) 12... Nxf4 $2 {[%emt 0:04:10][%mdl 8192] [#]} (12... Nc7 $16) 13. d5 $4 {[%emt 0:00:00][%mdl 8192]} exd5 $4 {[%emt 0:00:46][%mdl 8192] [#]} (13... Nxe2 $19 {avoids the disaster.} 14. Kxe2 Bg7) 14. a4 $4 {[%emt 0:00:00][%mdl 8192]} a5 $4 {[%emt 0:00:26][%mdl 8192]} (14... Nxe2 $19 {and life is good for Black.} 15. Kxe2 Bb7 (15... dxc4 $2 16. Bg2 $19)) 15. Nf3 $4 {[%emt 0:02:05][%mdl 40960] Weighted Error Value: White=2.14/Black=2.47.  Loses game:     	---       	Black=3      Missed win:     	White=5     	Black=1      Mistake:       	White=3     	Black=3      OK:         	White=1     	Black=1     . An unexpected result.} (15. gxf4 Qxh4+ 16. Kd1 Ra7 $11) (15. exf4 $18 Qxe2+ 16. Kxe2) 1/2-1/2